fUSD/lending_fUSD_20240121
["ID","MTS","AMOUNT","RATE_DAILY","PERIOD"]
[312443770,1705876572828,-500.0,0.00045479,31]
[312443771,1705876572860,-500.0,0.00045479,31]
[312443772,1705876572893,-1369.47,0.00045479,31]
[312443773,1705876572929,-621.7364077,0.00045479,31]
[312443774,1705876572966,-505.47,0.00045479,31]
[312443775,1705876573000,-806.13,0.00045479,31]
[312443776,1705876573035,-500.0,0.00045479,31]
[312443777,1705876573070,-500.0,0.00045479,31]
[312443778,1705876573106,-500.0,0.00045479,31]
[312443779,1705876573141,-707.32,0.00045479,31]
[312443780,1705876573178,-500.0,0.00045479,31]
[312443781,1705876573212,-500.0,0.00045479,31]
[312443782,1705876573247,-500.0,0.00045479,31]
[312443783,1705876573282,-500.0,0.00045479,31]
[312443784,1705876573316,-552.64,0.00045479,31]
[312443785,1705876573353,-500.0,0.00045479,31]
[312443786,1705876573388,-805.58,0.00045479,31]
[312443787,1705876573422,-500.0,0.00045479,31]
[312443788,1705876573456,-272.59,0.00045479,31]
[312443789,1705876573491,-605.93,0.00045479,31]
[312443790,1705876573528,-1097.88,0.00045479,31]
[312443791,1705876573564,-268.08,0.00045479,30]
[312443792,1705876573600,-500.0,0.00045479,31]
[312443793,1705876573635,-845.1,0.00045479,31]
[312443794,1705876573670,-500.0,0.00045479,31]
[312443795,1705876573703,-500.0,0.00045479,31]
[312443796,1705876573740,-521.41,0.00045479,31]
[312443797,1705876573774,-788.32,0.00045479,31]
[312443798,1705876573815,-720.24,0.00045479,31]
[312443799,1705876573852,-518.74,0.00045479,31]
[312443800,1705876573886,-500.0,0.00045479,31]
[312443801,1705876573920,-500.0,0.00045479,31]
[312443802,1705876573953,-500.0,0.00045479,31]
[312443803,1705876573988,-500.0,0.00045479,31]
[312443804,1705876574022,-500.0,0.00045479,31]
[312443805,1705876574058,-1173.58,0.00045479,31]
[312443806,1705876574098,-810.11,0.00045479,31]
[312443807,1705876574131,-547.76,0.00045479,31]
[312443808,1705876574170,-171.86645916,0.00045479,31]
[312443809,1705876574218,-898.08,0.00045479,31]
[312443810,1705876574254,-500.0,0.00045479,31]
[312443811,1705876574294,-1249.82,0.00045479,31]
[312443812,1705876574327,-500.0,0.00045479,31]
[312443813,1705876574361,-644.21,0.00045479,31]
[312443814,1705876574394,-598.75,0.00045479,31]
[312443815,1705876574434,-500.0,0.00045479,31]
[312443816,1705876574488,-1092.57,0.00045479,31]
[312443817,1705876574521,-1011.23,0.00045479,31]
[312443818,1705876574554,-860.96,0.00045479,31]
[312443819,1705876574591,-500.0,0.00045479,31]
[312443820,1705876574625,-500.0,0.00045479,31]
[312443821,1705876574661,-500.0,0.00045479,31]
[312443822,1705876574698,-1118.43,0.00045479,31]
[312443823,1705876574732,-749.11,0.00045479,31]
[312443824,1705876574766,-500.0,0.00045479,31]
[312443825,1705876574801,-731.16,0.00045479,31]
[312443826,1705876574837,-723.92,0.00045479,31]
[312443827,1705876574872,-500.0,0.00045479,31]
[312443828,1705876574905,-500.0,0.00045479,31]
[312443829,1705876574941,-500.0,0.00045479,31]
[312443830,1705876574973,-500.0,0.00045479,31]
[312443831,1705876575006,-654.99,0.00045479,31]
[312443832,1705876575041,-1172.22,0.00045479,31]
[312443833,1705876575073,-1046.22,0.00045479,31]
[312443834,1705876575104,-785.66,0.00045479,31]
[312443835,1705876575138,-500.0,0.00045479,31]
[312443836,1705876575171,-643.91,0.00045479,31]
[312443837,1705876575204,-501.64,0.00045479,31]
[312443838,1705876575238,-500.0,0.00045479,31]
[312443839,1705876575272,-500.0,0.00045479,31]
[312443840,1705876575310,-552.21,0.00045479,31]
[312443841,1705876575344,-562.71,0.00045479,31]
[312443842,1705876575380,-500.0,0.00045479,31]
[312443843,1705876575417,-708.83,0.00045479,31]
[312443844,1705876575451,-500.0,0.00045479,31]
[312443845,1705876575483,-1106.03,0.00045479,31]
[312443846,1705876575520,-645.89,0.00045479,31]
[312443847,1705876575558,-500.0,0.00045479,31]
[312443848,1705876575610,-646.94,0.00045479,31]
[312443849,1705876575658,-500.0,0.00045479,31]
[312443850,1705876575856,-500.0,0.00045479,31]
[312443851,1705876575911,-500.0,0.00045479,31]
[312443852,1705876575952,-2098.17,0.00045479,31]
[312443853,1705876576014,-941.47,0.00045479,31]
[312443854,1705876576050,-500.0,0.00045479,31]
[312443855,1705876576088,-797.7,0.00045479,31]
[312443856,1705876576121,-635.48,0.00045479,31]
[312443857,1705876576155,-581.22,0.00045479,31]
[312443858,1705876576190,-500.0,0.00045479,31]
[312443859,1705876576225,-1051.73,0.00045479,31]
[312443860,1705876576259,-611.42,0.00045479,31]
[312443861,1705876576292,-500.0,0.00045479,31]
[312443862,1705876576326,-992.54,0.00045479,31]
[312443863,1705876576361,-332.94579897,0.00045479,31]
[312443864,1705876576396,-500.0,0.00045479,31]
[312443865,1705876576430,-565.87,0.00045479,31]
[312443866,1705876576464,-203.41441837,0.00045479,31]
[312443867,1705876576497,-500.0,0.00045479,31]
[312443868,1705876576536,-588.35,0.00045479,31]
[312443869,1705876576572,-709.96,0.00045479,31]
[312443870,1705876576606,-500.0,0.00045479,31]
[312443871,1705876576640,-500.0,0.00045479,31]
[312443872,1705876576676,-679.91,0.00045479,31]
[312443873,1705876576710,-500.0,0.00045479,31]
[312443874,1705876576743,-826.78,0.00045479,31]
[312443875,1705876576777,-550.18,0.00045479,31]
[312443876,1705876576811,-1072.37,0.00045479,31]
[312443877,1705876576844,-561.03,0.00045479,31]
[312443878,1705876576880,-500.0,0.00045479,31]
[312443879,1705876576913,-722.05,0.00045479,31]
[312443880,1705876576947,-1048.9,0.00045479,31]
[312443881,1705876576981,-500.0,0.00045479,31]
[312443882,1705876577018,-500.32,0.00045479,31]
[312443883,1705876577053,-675.32,0.00045479,31]
[312443884,1705876577088,-574.76,0.00045479,31]
[312443885,1705876577122,-1933.9,0.00045479,31]
[312443886,1705876577157,-595.6,0.00045479,31]
[312443887,1705876577192,-500.0,0.00045479,31]
[312443888,1705876577228,-847.51,0.00045479,31]
[312443889,1705876577264,-583.74,0.00045479,31]
[312443890,1705876577298,-614.24,0.00045479,31]
[312443891,1705876577332,-500.0,0.00045479,31]
[312443892,1705876577365,-500.0,0.00045479,31]
[312443893,1705876577400,-500.0,0.00045479,31]
[312443894,1705876577437,-500.0,0.00045479,31]
[312443895,1705876577471,-500.0,0.00045479,31]
[312443896,1705876577505,-640.11,0.00045479,31]
[312443897,1705876577538,-640.18,0.00045479,31]
[312443898,1705876577572,-503.74,0.00045479,31]
[312443899,1705876577604,-1125.5,0.00045479,31]
[312443900,1705876577636,-500.0,0.00045479,31]
[312443901,1705876577669,-553.42,0.00045479,31]
[312443902,1705876577703,-706.24,0.00045479,31]
[312443903,1705876577735,-500.0,0.00045479,31]
[312443904,1705876577769,-759.04,0.00045479,31]
[312443905,1705876577802,-500.0,0.00045479,31]
[312443906,1705876577835,-618.9,0.00045479,31]
[312443907,1705876577867,-620.1,0.00045479,31]
[312443908,1705876577900,-751.8,0.00045479,31]
[312443909,1705876577932,-596.28,0.00045479,31]
[312443910,1705876577965,-791.81,0.00045479,31]
[312443911,1705876577998,-9012.61,0.00045479,31]
[312443912,1705876578031,-1020.43,0.00045479,31]
[312443913,1705876578065,-730.33,0.00045479,31]
[312443914,1705876578097,-500.0,0.00045479,31]
[312443915,1705876578136,-500.0,0.00045479,31]
[312443916,1705876578172,-856.84,0.00045479,31]
[312443917,1705876578206,-500.0,0.00045479,31]
[312443918,1705876578242,-500.0,0.00045479,31]
[312443919,1705876578277,-735.19,0.00045479,31]
[312443920,1705876578313,-500.0,0.00045479,31]
[312443921,1705876578348,-500.0,0.00045479,31]
[312443922,1705876578384,-830.88,0.00045479,31]
[312443923,1705876578420,-2377.26,0.00045479,31]
[312443924,1705876578455,-766.87,0.00045479,31]
[312443925,1705876578490,-500.0,0.00045479,31]
[312443926,1705876578529,-500.0,0.00045479,31]
[312443927,1705876578564,-500.0,0.00045479,31]
[312443928,1705876578600,-1112.8,0.00045479,31]
[312443929,1705876578636,-641.2,0.00045479,31]
[312443930,1705876578671,-881.88,0.00045479,31]
[312443931,1705876578706,-1038.39,0.00045479,31]
[312443932,1705876578739,-647.93,0.00045479,31]
[312443933,1705876578772,-666.36,0.00045479,31]
[312443934,1705876578806,-4639.17,0.00045479,31]
[312443935,1705876578841,-673.21,0.00045479,31]
[312443936,1705876578877,-3298.95,0.00045479,31]
[312443937,1705876578913,-500.0,0.00045479,31]
[312443938,1705876578947,-992.34,0.00045479,31]
[312443939,1705876578982,-2034.53,0.00045479,31]
[312443940,1705876579017,-660.28,0.00045479,31]
[312443941,1705876579053,-500.0,0.00045479,31]
[312443942,1705876579088,-500.0,0.00045479,31]
[312443943,1705876579126,-28036.98,0.00045479,31]
[312443944,1705876579162,-1938.75,0.00045479,31]
[312443945,1705876579198,-549.75,0.00045479,31]
[312443946,1705876579234,-903.34,0.00045479,31]
[312443947,1705876579271,-3123.65,0.00045479,31]
[312443948,1705876579311,-1216.46,0.00045479,31]
[312443949,1705876579347,-464.04533929,0.00045479,31]
[312443950,1705876579389,-1029.32,0.00045479,31]
[312443951,1705876579428,-686.97,0.00045479,31]
[312443952,1705876579466,-1296.81,0.00045479,31]
[312443953,1705876579504,-2125.13,0.00045479,31]
[312443954,1705876579764,-1186.92,0.00045479,31]
[312443955,1705876579805,-2234.56,0.00045479,31]
[312443956,1705876579842,-1017.01,0.00045479,31]
[312443957,1705876579878,-1214.61,0.00045479,31]
[312443958,1705876579914,-500.0,0.00045479,31]
[312443959,1705876579948,-550.46,0.00045479,31]
[312443960,1705876579983,-980.04,0.00045479,31]
[312443961,1705876580021,-500.0,0.00045479,31]
[312443962,1705876580058,-764.47,0.00045479,31]
[312443963,1705876580094,-500.0,0.00045479,31]
[312443964,1705876580131,-692.17,0.00045479,31]
[312443965,1705876580166,-231.01960923,0.00045479,31]
[312443966,1705876580201,-589.26,0.00045479,31]
[312443967,1705876580238,-500.0,0.00045479,31]
[312443968,1705876580278,-4050.53,0.00045479,31]
[312443969,1705876580314,-790.3,0.00045479,31]
[312443970,1705876580350,-1409.68,0.00045479,31]
[312443971,1705876580392,-884.87,0.00045479,31]
[312443972,1705876580428,-500.0,0.00045479,31]
[312443973,1705876580463,-8615.3,0.00045479,31]
[312443974,1705876580498,-650.65,0.00045479,31]
[312443975,1705876580533,-1164.14,0.00045479,31]
[312443976,1705876580577,-509.39,0.00045479,31]
[312443977,1705876580614,-500.39,0.00045479,31]
[312443978,1705876580650,-1317.68,0.00045479,31]
[312443979,1705876580685,-500.0,0.00045479,31]
[312443980,1705876580720,-773.48,0.00045479,31]
[312443981,1705876580754,-500.0,0.00045479,31]
[312443982,1705876580789,-500.0,0.00045479,31]
[312443983,1705876580824,-500.0,0.00045479,31]
[312443984,1705876580859,-500.0,0.00045479,31]
[312443985,1705876580894,-687.04,0.00045479,31]
[312443986,1705876580929,-2437.34,0.00045479,31]
[312443987,1705876580964,-500.0,0.00045479,31]
[312443988,1705876581000,-2353.8,0.00045479,31]
[312443989,1705876581039,-2671.1,0.00045479,31]
[312443990,1705876581075,-350.87990691,0.00045479,31]
[312443991,1705876581110,-550.23154264,0.00045479,31]
[312443992,1705876581146,-1627.9,0.00045479,31]
[312443993,1705876581182,-500.0,0.00045479,31]
[312443994,1705876581217,-701.03,0.00045479,31]
[312443995,1705876581255,-744.64,0.00045479,31]
[312443996,1705876581291,-722.25,0.00045479,31]
[312443997,1705876581327,-1057.32,0.00045479,31]
[312443998,1705876581366,-2605.29,0.00045479,31]
[312443999,1705876581406,-500.0,0.00045479,31]
[312444000,1705876581444,-500.0,0.00045479,31]
[312444001,1705876581502,-628.07,0.00045479,31]
[312444002,1705876581538,-1869.91,0.00045479,31]
[312444003,1705876581572,-853.42,0.00045479,31]
[312444004,1705876581606,-500.0,0.00045479,31]
[312444005,1705876581640,-500.0,0.00045479,31]
[312444006,1705876581673,-500.0,0.00045479,31]
[312444007,1705876581706,-1463.45,0.00045479,31]
[312444008,1705876581740,-500.0,0.00045479,31]
[312444009,1705876581773,-738.08,0.00045479,31]
[312444010,1705876581812,-1856.37,0.00045479,31]
[312444011,1705876581848,-2717.95,0.00045479,31]
[312444012,1705876581883,-500.0,0.00045479,31]
[312444013,1705876581918,-671.9,0.00045479,31]
[312444014,1705876581952,-500.0,0.00045479,31]
[312444015,1705876581985,-3818.85,0.00045479,31]
[312444016,1705876582021,-576.78,0.00045479,31]
[312444017,1705876582056,-685.5,0.00045479,31]
[312444018,1705876582090,-432.39174379,0.00045479,31]
[312444019,1705876582126,-1834.73,0.00045479,31]
[312444020,1705876582162,-782.28,0.00045479,31]
[312444021,1705876582199,-801.69,0.00045479,31]
[312444022,1705876582234,-7874.08,0.00045479,31]
[312444023,1705876582269,-508.28,0.00045479,31]
[312444024,1705876582304,-1665.66,0.00045479,31]
[312444025,1705876582340,-1435.39,0.00045479,31]
[312444026,1705876582373,-500.0,0.00045479,31]
[312444027,1705876582407,-406.3086828,0.00045479,31]
[312444028,1705876582446,-3052.12,0.00045479,31]
[312444029,1705876582480,-1882.97,0.00045479,31]
[312444030,1705876582513,-1653.87,0.00045479,31]
[312444031,1705876582546,-500.0,0.00045479,31]
[312444032,1705876582583,-670.83,0.00045479,31]
[312444033,1705876582619,-500.0,0.00045479,31]
[312444034,1705876582653,-705.2,0.00045479,31]
[312444035,1705876582687,-782.76,0.00045479,31]
[312444036,1705876582721,-500.0,0.00045479,31]
[312444037,1705876582754,-500.0,0.00045479,31]
[312444038,1705876582787,-794.26,0.00045479,31]
[312444039,1705876582820,-711.05,0.00045479,31]
[312444040,1705876582853,-500.0,0.00045479,31]
[312444041,1705876582887,-1594.26,0.00045479,31]
[312444042,1705876582925,-3948.71,0.00045479,31]
[312444043,1705876582958,-1147.94,0.00045479,31]
[312444044,1705876582991,-500.0,0.00045479,31]
[312444045,1705876583026,-2653.24,0.00045479,31]
[312444046,1705876583062,-1622.79,0.00045479,31]
[312444047,1705876583095,-887.82,0.00045479,31]
[312444048,1705876583131,-2192.06,0.00045479,31]
[312444049,1705876583165,-500.19,0.00045479,31]
[312444050,1705876583198,-542.37933545,0.00045479,31]
[312444051,1705876583233,-4489.98,0.00045479,31]
[312444052,1705876583267,-981.16,0.00045479,31]
[312444053,1705876583302,-500.0,0.00045479,31]
[312444054,1705876583335,-500.0,0.00045479,31]
[312444055,1705876583369,-500.0,0.00045479,31]
[312444056,1705876583404,-500.0,0.00045479,31]
[312444057,1705876583441,-529.53,0.00045479,31]
[312444058,1705876583627,-2135.06,0.00045479,31]
[312444059,1705876583663,-524.77,0.00045479,31]
[312444060,1705876583697,-500.0,0.00045479,31]
[312444061,1705876583731,-1015.89,0.00045479,31]
[312444062,1705876583766,-863.57,0.00045479,31]
[312444063,1705876583800,-528.03,0.00045479,31]
[312444064,1705876583839,-2514.68,0.00045479,31]
[312444065,1705876583873,-748.59,0.00045479,31]
[312444066,1705876583907,-1005.16,0.00045479,31]
[312444067,1705876583942,-522.5292464,0.00045479,31]
[312444068,1705876583979,-150.0,0.000455,30]
[312444069,1705876584016,-168.0,0.00045523,90]
[312444070,1705876584229,-765.0,0.00045541,30]
[312444071,1705876584268,-82052.0,0.00045541,30]
[312444072,1705876584302,-648.0,0.00045747,120]
[312444073,1705876584337,-21917.05971083,0.000458,120]
[312444074,1705876584376,-50000.0,0.000459,30]
[312444075,1705876584415,-659.00874263,0.000459,30]
[312444076,1705876584451,-348.17153945,0.000459,30]
[312444077,1705876584489,-2129.92775492,0.000459,30]
[312444078,1705876584525,-167.92744522,0.000459,30]
[312444079,1705876584564,-362.49584097,0.000459,30]
[312444080,1705876584600,-579.02111723,0.000459,30]
[312444081,1705876584636,-451.11978221,0.000459,30]
[312444082,1705876584671,-986.95365551,0.000459,30]
[312444083,1705876584705,-364.38815911,0.000459,30]
[312444084,1705876584740,-1023.11413881,0.000459,30]
[312444085,1705876584775,-627.55738514,0.000459,30]
[312444086,1705876584810,-333.10846243,0.000459,30]
[312444087,1705876584845,-149999.0,0.000459,30]
[312444088,1705876584881,-2944.74786457,0.000459,30]
[312444089,1705876584918,-163.9746716,0.000459,30]
[312444090,1705876584952,-149999.0,0.000459,30]
[312444091,1705876584987,-490.61281505,0.000459,30]
[312444092,1705876585025,-205.24465527,0.000459,30]
[312444093,1705876585066,-149999.0,0.000459,30]
[312444094,1705876585103,-5199.837554,0.000459,45]
[312444095,1705876585144,-167.92744522,0.000459,30]
[312444096,1705876585179,-2697.2,0.0004591,111]
[312444097,1705876585215,-200.0,0.00045987,49]
[312444098,1705876585252,-765.0,0.00045992,30]
[312444099,1705876585288,-82052.0,0.00045992,30]
[312444100,1705876585323,-1000.0,0.00045999,120]
[312444101,1705876585358,-300.0,0.00046,47]
[312444102,1705876585403,-495.56554128,0.00046,33]
[312444103,1705876585441,-1205.73656644,0.00046027,120]
[312444104,1705876585476,-3550.99675713,0.00046027,35]
[312444105,1705876585512,-500.0,0.00046027,31]
[312444106,1705876585547,-500.0,0.00046027,31]
[312444107,1705876585581,-568.04,0.00046027,31]
[312444108,1705876585614,-500.0,0.00046027,31]
[312444109,1705876585647,-500.0,0.00046027,31]
[312444110,1705876585680,-523.93,0.00046027,31]
[312444111,1705876585713,-500.0,0.00046027,31]
[312444112,1705876585746,-500.0,0.00046027,31]
[312444113,1705876585782,-500.0,0.00046027,31]
[312444114,1705876585817,-500.0,0.00046027,31]
[312444115,1705876585853,-500.0,0.00046027,31]
[312444116,1705876585887,-500.0,0.00046027,31]
[312444117,1705876585920,-500.0,0.00046027,31]
[312444118,1705876585953,-500.0,0.00046027,31]
[312444119,1705876585987,-516.25,0.00046027,31]
[312444120,1705876586024,-500.0,0.00046027,31]
[312444121,1705876586059,-579.47,0.00046027,31]
[312444122,1705876586094,-500.0,0.00046027,31]
[312444123,1705876586130,-331.3329423,0.00046027,31]
[312444124,1705876586164,-500.0,0.00046027,31]
[312444125,1705876586198,-500.0,0.00046027,31]
[312444126,1705876586231,-500.0,0.00046027,31]
[312444127,1705876586265,-500.0,0.00046027,31]
[312444128,1705876586298,-500.0,0.00046027,31]
[312444129,1705876586330,-500.0,0.00046027,31]
[312444130,1705876586367,-500.0,0.00046027,31]
[312444131,1705876586401,-500.0,0.00046027,31]
[312444132,1705876586435,-509.28,0.00046027,31]
[312444133,1705876586467,-500.0,0.00046027,31]
[312444134,1705876586502,-500.0,0.00046027,31]
[312444135,1705876586537,-500.0,0.00046027,31]
[312444136,1705876586571,-500.0,0.00046027,31]
[312444137,1705876586605,-500.0,0.00046027,31]
[312444138,1705876586639,-508.85,0.00046027,31]
[312444139,1705876586674,-608.21,0.00046027,31]
[312444140,1705876586708,-579.63,0.00046027,31]
[312444141,1705876586742,-500.0,0.00046027,31]
[312444142,1705876586781,-500.0,0.00046027,31]
[312444143,1705876586822,-598.31,0.00046027,31]
[312444144,1705876586864,-500.0,0.00046027,31]
[312444145,1705876586902,-500.0,0.00046027,31]
[312444146,1705876586939,-785.88,0.00046027,31]
[312444147,1705876586972,-529.13,0.00046027,31]
[312444148,1705876587007,-500.0,0.00046027,31]
[312444149,1705876587044,-500.0,0.00046027,31]
[312444150,1705876587080,-500.0,0.00046027,31]
[312444151,1705876587115,-500.0,0.00046027,31]
[312444152,1705876587150,-464.12575578,0.00046027,31]
[312444153,1705876587187,-589.34435587,0.00046027,31]
[312444154,1705876587225,-500.0,0.00046027,31]
[312444155,1705876587263,-500.0,0.00046027,30]
[312444156,1705876587301,-500.0,0.00046027,31]
[312444157,1705876587337,-500.0,0.00046027,31]
[312444158,1705876587372,-500.0,0.00046027,31]
[312444159,1705876587405,-1369.47,0.00046027,31]
[312444160,1705876587438,-505.47,0.00046027,31]
[312444161,1705876587651,-806.13,0.00046027,31]
[312444162,1705876587688,-500.0,0.00046027,31]
[312444163,1705876587723,-500.0,0.00046027,31]
[312444164,1705876587757,-500.0,0.00046027,31]
[312444165,1705876587792,-707.32,0.00046027,31]
[312444166,1705876587826,-500.0,0.00046027,31]
[312444167,1705876587860,-500.0,0.00046027,31]
[312444168,1705876587894,-500.0,0.00046027,31]
[312444169,1705876587928,-500.0,0.00046027,31]
[312444170,1705876587963,-552.64,0.00046027,31]
[312444171,1705876587997,-500.0,0.00046027,31]
[312444172,1705876588030,-805.58,0.00046027,31]
[312444173,1705876588063,-294.66,0.00046027,31]
[312444174,1705876588097,-272.59,0.00046027,31]
[312444175,1705876588132,-605.93,0.00046027,31]
[312444176,1705876588169,-1097.88,0.00046027,31]
[312444177,1705876588205,-268.08,0.00046027,30]
[312444178,1705876588242,-500.0,0.00046027,31]
[312444179,1705876588278,-845.1,0.00046027,31]
[312444180,1705876588312,-500.0,0.00046027,31]
[312444181,1705876588346,-233.71555504,0.00046027,31]
[312444182,1705876588380,-521.41,0.00046027,31]
[312444183,1705876588414,-788.32,0.00046027,31]
[312444184,1705876588447,-720.24,0.00046027,31]
[312444185,1705876588480,-518.74,0.00046027,31]
[312444186,1705876588513,-500.0,0.00046027,31]
[312444187,1705876588548,-500.0,0.00046027,31]
[312444188,1705876588582,-500.0,0.00046027,31]
[312444189,1705876588619,-500.0,0.00046027,31]
[312444190,1705876588655,-500.0,0.00046027,31]
[312444191,1705876588690,-1173.58,0.00046027,31]
[312444192,1705876588723,-810.11,0.00046027,31]
[312444193,1705876588757,-547.76,0.00046027,31]
[312444194,1705876588793,-898.08,0.00046027,31]
[312444195,1705876588832,-500.0,0.00046027,31]
[312444196,1705876588868,-1249.82,0.00046027,31]
[312444197,1705876588902,-500.0,0.00046027,31]
[312444198,1705876588945,-644.21,0.00046027,31]
[312444199,1705876588982,-598.75,0.00046027,31]
[312444200,1705876589018,-500.0,0.00046027,31]
[312444201,1705876589057,-1092.57,0.00046027,31]
[312444202,1705876589098,-1011.23,0.00046027,31]
[312444203,1705876589134,-860.96,0.00046027,31]
[312444204,1705876589168,-500.0,0.00046027,31]
[312444205,1705876589203,-500.0,0.00046027,31]
[312444206,1705876589237,-500.0,0.00046027,31]
[312444207,1705876589272,-1118.43,0.00046027,31]
[312444208,1705876589308,-749.11,0.00046027,31]
[312444209,1705876589346,-500.0,0.00046027,31]
[312444210,1705876589382,-731.16,0.00046027,31]
[312444211,1705876589417,-723.92,0.00046027,31]
[312444212,1705876589452,-500.0,0.00046027,31]
[312444213,1705876589487,-500.0,0.00046027,31]
[312444214,1705876589522,-500.0,0.00046027,31]
[312444215,1705876589556,-500.0,0.00046027,31]
[312444216,1705876589589,-654.99,0.00046027,31]
[312444217,1705876589623,-1172.22,0.00046027,31]
[312444218,1705876589656,-1046.22,0.00046027,31]
[312444219,1705876589690,-785.66,0.00046027,31]
[312444220,1705876589724,-500.0,0.00046027,31]
[312444221,1705876589757,-643.91,0.00046027,31]
[312444222,1705876589790,-501.64,0.00046027,31]
[312444223,1705876589824,-500.0,0.00046027,31]
[312444224,1705876589857,-500.0,0.00046027,31]
[312444225,1705876589890,-562.71,0.00046027,31]
[312444226,1705876589924,-552.21,0.00046027,31]
[312444227,1705876589957,-500.0,0.00046027,31]
[312444228,1705876589990,-708.83,0.00046027,31]
[312444229,1705876590027,-500.0,0.00046027,31]
[312444230,1705876590066,-1106.03,0.00046027,31]
[312444231,1705876590099,-645.89,0.00046027,31]
[312444232,1705876590132,-500.0,0.00046027,31]
[312444233,1705876590166,-646.94,0.00046027,31]
[312444234,1705876590199,-500.0,0.00046027,31]
[312444235,1705876590234,-500.0,0.00046027,31]
[312444236,1705876590268,-500.0,0.00046027,31]
[312444237,1705876590301,-2098.17,0.00046027,31]
[312444238,1705876590334,-941.47,0.00046027,31]
[312444239,1705876590368,-500.0,0.00046027,31]
[312444240,1705876590403,-797.7,0.00046027,31]
[312444241,1705876590438,-635.48,0.00046027,31]
[312444242,1705876590471,-581.22,0.00046027,31]
[312444243,1705876590505,-613.66,0.00046027,31]
[312444244,1705876590538,-1051.73,0.00046027,31]
[312444245,1705876590585,-611.42,0.00046027,31]
[312444246,1705876590622,-500.0,0.00046027,31]
[312444247,1705876590657,-992.54,0.00046027,31]
[312444248,1705876590690,-500.0,0.00046027,31]
[312444249,1705876590722,-565.87,0.00046027,31]
[312444250,1705876590761,-500.0,0.00046027,31]
[312444251,1705876590794,-588.35,0.00046027,31]
[312444252,1705876590828,-709.96,0.00046027,31]
[312444253,1705876590860,-500.0,0.00046027,31]
[312444254,1705876590893,-500.0,0.00046027,31]
[312444255,1705876590925,-679.91,0.00046027,31]
[312444256,1705876590956,-500.0,0.00046027,31]
[312444257,1705876590987,-826.78,0.00046027,31]
[312444258,1705876591023,-550.18,0.00046027,31]
[312444259,1705876591054,-1072.37,0.00046027,31]
[312444260,1705876591088,-561.03,0.00046027,31]
[312444261,1705876591123,-500.0,0.00046027,31]
[312444262,1705876591156,-722.05,0.00046027,31]
[312444263,1705876591188,-1048.9,0.00046027,31]
[312444264,1705876591221,-500.0,0.00046027,31]
[312444265,1705876591432,-500.32,0.00046027,31]
[312444266,1705876591470,-675.32,0.00046027,31]
[312444267,1705876591504,-574.76,0.00046027,31]
[312444268,1705876591537,-1933.9,0.00046027,31]
[312444269,1705876591569,-595.6,0.00046027,31]